Workbook

Sheet Data
A1: Age class | B1: Online (USD)
A2: 15-30 | B2: 118
A3: 15-30 | B3: 86
A4: 15-30 | B4: 216
A5: 15-30 | B5: 114
A6: 15-30 | B6: 54
A7: 15-30 | B7: 248
A8: 15-30 | B8: 209
A9: 15-30 | B9: 61
A10: 15-30 | B10: 189
A11: 15-30 | B11: 115
A12: 15-30 | B12: 86
A13: 15-30 | B13: 218
A14: 15-30 | B14: 244
A15: 15-30 | B15: 69
A16: 15-30 | B16: 176
A17: 15-30 | B17: 32
A18: 15-30 | B18: 117
A19: 15-30 | B19: 126
A20: 15-30 | B20: 209
A21: 15-30 | B21: 174
A22: 15-30 | B22: 227
A23: 15-30 | B23: 106
A24: 15-30 | B24: 50
A25: 15-30 | B25: 156
A26: 15-30 | B26: 68
A27: 15-30 | B27: 124
A28: 15-30 | B28: 88
A29: 15-30 | B29: 76
A30: 15-30 | B30: 122
A31: 15-30 | B31: 218
A32: 15-30 | B32: 139
A33: 15-30 | B33: 164
A34: 15-30 | B34: 238
A35: 15-30 | B35: 221
A36: 15-30 | B36: 184
A37: 15-30 | B37: 82
A38: 15-30 | B38: 57
A39: 15-30 | B39: 240
A40: 15-30 | B40: 70
A41: 15-30 | B41: 75
A42: 15-30 | B42: 102
A43: 15-30 | B43: 217
A44: 15-30 | B44: 98
A45: 15-30 | B45: 139
A46: 15-30 | B46: 123
A47: 15-30 | B47: 171
A48: 15-30 | B48: 96
A49: 15-30 | B49: 94
A50: 15-30 | B50: 128
A51: 15-30 | B51: 182
A52: 30-45 | B52: 281
A53: 30-45 | B53: 201
A54: 30-45 | B54: 293
A55: 30-45 | B55: 228
A56: 30-45 | B56: 221
A57: 30-45 | B57: 217
A58: 30-45 | B58: 224
A59: 30-45 | B59: 182
A60: 30-45 | B60: 205
A61: 30-45 | B61: 238
A62: 30-45 | B62: 288
A63: 30-45 | B63: 223
A64: 30-45 | B64: 175
A65: 30-45 | B65: 270
A66: 30-45 | B66: 232
A67: 30-45 | B67: 187
A68: 30-45 | B68: 164
A69: 30-45 | B69: 194
A70: 30-45 | B70: 298
A71: 30-45 | B71: 260
A72: 30-45 | B72: 178
A73: 30-45 | B73: 251
A74: 30-45 | B74: 252
A75: 30-45 | B75: 174
A76: 30-45 | B76: 228
A77: 30-45 | B77: 150
A78: 30-45 | B78: 270
A79: 30-45 | B79: 161
A80: 30-45 | B80: 274
A81: 30-45 | B81: 151
A82: 30-45 | B82: 174
A83: 30-45 | B83: 214
A84: 30-45 | B84: 242
A85: 30-45 | B85: 213
A86: 30-45 | B86: 206
A87: 30-45 | B87: 232
A88: 30-45 | B88: 293
A89: 30-45 | B89: 263
A90: 30-45 | B90: 300
A91: 30-45 | B91: 203
A92: 30-45 | B92: 289
A93: 30-45 | B93: 222
A94: 30-45 | B94: 198
A95: 30-45 | B95: 277
A96: 30-45 | B96: 262
A97: 30-45 | B97: 154
A98: 30-45 | B98: 208
A99: 30-45 | B99: 197
A100: 30-45 | B100: 258
A101: 30-45 | B101: 265
A102: >45 | B102: 137
A103: >45 | B103: 131
A104: >45 | B104: 97
A105: >45 | B105: 69
A106: >45 | B106: 129
A107: >45 | B107: 115
A108: >45 | B108: 139
A109: >45 | B109: 122
A110: >45 | B110: 81
A111: >45 | B111: 85
A112: >45 | B112: 135
A113: >45 | B113: 96
A114: >45 | B114: 85
A115: >45 | B115: 83
A116: >45 | B116: 95
A117: >45 | B117: 117
A118: >45 | B118: 68
A119: >45 | B119: 148
A120: >45 | B120: 87
A121: >45 | B121: 140
A122: >45 | B122: 103
A123: >45 | B123: 127
A124: >45 | B124: 124
A125: >45 | B125: 145
A126: >45 | B126: 77
A127: >45 | B127: 69
A128: >45 | B128: 62
A129: >45 | B129: 96
A130: >45 | B130: 78
A131: >45 | B131: 89
A132: >45 | B132: 100
A133: >45 | B133: 82
A134: >45 | B134: 123
A135: >45 | B135: 130
A136: >45 | B136: 50
A137: >45 | B137: 53
A138: >45 | B138: 128
A139: >45 | B139: 107
A140: >45 | B140: 79
A141: >45 | B141: 78
A142: >45 | B142: 118
A143: >45 | B143: 145
A144: >45 | B144: 63
A145: >45 | B145: 110
A146: >45 | B146: 114
A147: >45 | B147: 134
A148: >45 | B148: 102
A149: >45 | B149: 72
A150: >45 | B150: 125
A151: >45 | B151: 130

Sheet Desc
B1: XLSTAT 2023.1.3.1409 - Descriptive statistics - Start time: 25/05/2023 at 16:25:20 / End time: 25/05/2023 at 16:25:22 / Microsoft Excel 16.016227
B2: Quantitative data: Workbook = DemoDESC.xlsm / Sheet = Data / Range = 'Data'!$B:$B / 150 rows and 1 column
B3: Subsamples: Workbook = DemoDESC.xlsm / Sheet = Data / Range = 'Data'!$A:$A / 150 rows and 1 column
B8: Descriptive statistics (Quantitative data):
B10: Statistic | C10: Online (USD) | D10: Online (USD) | Age class-15-30 | E10: Online (USD) | Age class-30-45 | F10: Online (USD) | Age class->45
B11: Nbr. of observations | C11: 150 | D11: 50 | E11: 50 | F11: 50
B12: Nbr. of missing values | C12: 0 | D12: 0 | E12: 0 | F12: 0
B13: Minimum | C13: 32 | D13: 32 | E13: 150 | F13: 50
B14: Maximum | C14: 300 | D14: 248 | E14: 300 | F14: 148
B15: 1st Quartile | C15: 96.25 | D15: 86.5 | E15: 197.25 | F15: 81.25
B16: Median | C16: 139 | D16: 123.5 | E16: 223.5 | F16: 102.5
B17: 3rd Quartile | C17: 216.75 | D17: 187.75 | E17: 262.75 | F17: 127.75
B18: Mean | C18: 156.1866667 | D18: 138.32 | E18: 226.8 | F18: 103.44
B19: Variance (n-1) | C19: 4826.246801 | D19: 3824.303673 | E19: 1861.387755 | F19: 737.3126531
B20: Standard deviation (n-1) | C20: 69.47119404 | D20: 61.84095466 | E20: 43.14380321 | F20: 27.15350167
B23: Box plots:

Sheet XLSTAT_20230525_162510_1_HID (hidden)
A1: 1 | B1: =(A1-1) -> 0 | C1: =1.25+B1*-0.0007153076 -> 1.25 | D1: =IF(B1/2-INT(B1/2)<0.1,216.75,96.25) -> 216.75 | E1: 1 | F1: =(E1-1) -> 0 | G1: =2.25+F1*-0.0007153076 -> 2.25 | H1: =IF(F1/2-INT(F1/2)<0.1,187.75,86.5) -> 187.75 | I1: 1 | J1: =(I1-1) -> 0 | K1: =3.25+J1*-0.0007153076 -> 3.25 | L1: =IF(J1/2-INT(J1/2)<0.1,262.75,197.25) -> 262.75 | M1: 1 | N1: =(M1-1) -> 0 | O1: =4.25+N1*-0.0007153076 -> 4.25 | P1: =IF(N1/2-INT(N1/2)<0.1,127.75,81.25) -> 127.75
A2: 2 | B2: 1 | C2: 1.249284692 | D2: 96.25 | E2: 2 | F2: 1 | G2: 2.249284692 | H2: 86.5 | I2: 2 | J2: 1 | K2: 3.249284692 | L2: 197.25 | M2: 2 | N2: 1 | O2: 4.249284692 | P2: 81.25
A3: 3 | B3: 2 | C3: 1.248569385 | D3: 216.75 | E3: 3 | F3: 2 | G3: 2.248569385 | H3: 187.75 | I3: 3 | J3: 2 | K3: 3.248569385 | L3: 262.75 | M3: 3 | N3: 2 | O3: 4.248569385 | P3: 127.75
A4: 4 | B4: 3 | C4: 1.247854077 | D4: 96.25 | E4: 4 | F4: 3 | G4: 2.247854077 | H4: 86.5 | I4: 4 | J4: 3 | K4: 3.247854077 | L4: 197.25 | M4: 4 | N4: 3 | O4: 4.247854077 | P4: 81.25
A5: 5 | B5: 4 | C5: 1.24713877 | D5: 216.75 | E5: 5 | F5: 4 | G5: 2.24713877 | H5: 187.75 | I5: 5 | J5: 4 | K5: 3.24713877 | L5: 262.75 | M5: 5 | N5: 4 | O5: 4.24713877 | P5: 127.75
A6: 6 | B6: 5 | C6: 1.246423462 | D6: 96.25 | E6: 6 | F6: 5 | G6: 2.246423462 | H6: 86.5 | I6: 6 | J6: 5 | K6: 3.246423462 | L6: 197.25 | M6: 6 | N6: 5 | O6: 4.246423462 | P6: 81.25
A7: 7 | B7: 6 | C7: 1.245708154 | D7: 216.75 | E7: 7 | F7: 6 | G7: 2.245708154 | H7: 187.75 | I7: 7 | J7: 6 | K7: 3.245708154 | L7: 262.75 | M7: 7 | N7: 6 | O7: 4.245708154 | P7: 127.75
A8: 8 | B8: 7 | C8: 1.244992847 | D8: 96.25 | E8: 8 | F8: 7 | G8: 2.244992847 | H8: 86.5 | I8: 8 | J8: 7 | K8: 3.244992847 | L8: 197.25 | M8: 8 | N8: 7 | O8: 4.244992847 | P8: 81.25
A9: 9 | B9: 8 | C9: 1.244277539 | D9: 216.75 | E9: 9 | F9: 8 | G9: 2.244277539 | H9: 187.75 | I9: 9 | J9: 8 | K9: 3.244277539 | L9: 262.75 | M9: 9 | N9: 8 | O9: 4.244277539 | P9: 127.75
A10: 10 | B10: 9 | C10: 1.243562232 | D10: 96.25 | E10: 10 | F10: 9 | G10: 2.243562232 | H10: 86.5 | I10: 10 | J10: 9 | K10: 3.243562232 | L10: 197.25 | M10: 10 | N10: 9 | O10: 4.243562232 | P10: 81.25
A11: 11 | B11: 10 | C11: 1.242846924 | D11: 216.75 | E11: 11 | F11: 10 | G11: 2.242846924 | H11: 187.75 | I11: 11 | J11: 10 | K11: 3.242846924 | L11: 262.75 | M11: 11 | N11: 10 | O11: 4.242846924 | P11: 127.75
A12: 12 | B12: 11 | C12: 1.242131616 | D12: 96.25 | E12: 12 | F12: 11 | G12: 2.242131616 | H12: 86.5 | I12: 12 | J12: 11 | K12: 3.242131616 | L12: 197.25 | M12: 12 | N12: 11 | O12: 4.242131616 | P12: 81.25
A13: 13 | B13: 12 | C13: 1.241416309 | D13: 216.75 | E13: 13 | F13: 12 | G13: 2.241416309 | H13: 187.75 | I13: 13 | J13: 12 | K13: 3.241416309 | L13: 262.75 | M13: 13 | N13: 12 | O13: 4.241416309 | P13: 127.75
A14: 14 | B14: 13 | C14: 1.240701001 | D14: 96.25 | E14: 14 | F14: 13 | G14: 2.240701001 | H14: 86.5 | I14: 14 | J14: 13 | K14: 3.240701001 | L14: 197.25 | M14: 14 | N14: 13 | O14: 4.240701001 | P14: 81.25
A15: 15 | B15: 14 | C15: 1.239985694 | D15: 216.75 | E15: 15 | F15: 14 | G15: 2.239985694 | H15: 187.75 | I15: 15 | J15: 14 | K15: 3.239985694 | L15: 262.75 | M15: 15 | N15: 14 | O15: 4.239985694 | P15: 127.75
A16: 16 | B16: 15 | C16: 1.239270386 | D16: 96.25 | E16: 16 | F16: 15 | G16: 2.239270386 | H16: 86.5 | I16: 16 | J16: 15 | K16: 3.239270386 | L16: 197.25 | M16: 16 | N16: 15 | O16: 4.239270386 | P16: 81.25
A17: 17 | B17: 16 | C17: 1.238555078 | D17: 216.75 | E17: 17 | F17: 16 | G17: 2.238555078 | H17: 187.75 | I17: 17 | J17: 16 | K17: 3.238555078 | L17: 262.75 | M17: 17 | N17: 16 | O17: 4.238555078 | P17: 127.75
A18: 18 | B18: 17 | C18: 1.237839771 | D18: 96.25 | E18: 18 | F18: 17 | G18: 2.237839771 | H18: 86.5 | I18: 18 | J18: 17 | K18: 3.237839771 | L18: 197.25 | M18: 18 | N18: 17 | O18: 4.237839771 | P18: 81.25
A19: 19 | B19: 18 | C19: 1.237124463 | D19: 216.75 | E19: 19 | F19: 18 | G19: 2.237124463 | H19: 187.75 | I19: 19 | J19: 18 | K19: 3.237124463 | L19: 262.75 | M19: 19 | N19: 18 | O19: 4.237124463 | P19: 127.75
A20: 20 | B20: 19 | C20: 1.236409156 | D20: 96.25 | E20: 20 | F20: 19 | G20: 2.236409156 | H20: 86.5 | I20: 20 | J20: 19 | K20: 3.236409156 | L20: 197.25 | M20: 20 | N20: 19 | O20: 4.236409156 | P20: 81.25
A21: 21 | B21: 20 | C21: 1.235693848 | D21: 216.75 | E21: 21 | F21: 20 | G21: 2.235693848 | H21: 187.75 | I21: 21 | J21: 20 | K21: 3.235693848 | L21: 262.75 | M21: 21 | N21: 20 | O21: 4.235693848 | P21: 127.75
A22: 22 | B22: 21 | C22: 1.23497854 | D22: 96.25 | E22: 22 | F22: 21 | G22: 2.23497854 | H22: 86.5 | I22: 22 | J22: 21 | K22: 3.23497854 | L22: 197.25 | M22: 22 | N22: 21 | O22: 4.23497854 | P22: 81.25
A23: 23 | B23: 22 | C23: 1.234263233 | D23: 216.75 | E23: 23 | F23: 22 | G23: 2.234263233 | H23: 187.75 | I23: 23 | J23: 22 | K23: 3.234263233 | L23: 262.75 | M23: 23 | N23: 22 | O23: 4.234263233 | P23: 127.75
A24: 24 | B24: 23 | C24: 1.233547925 | D24: 96.25 | E24: 24 | F24: 23 | G24: 2.233547925 | H24: 86.5 | I24: 24 | J24: 23 | K24: 3.233547925 | L24: 197.25 | M24: 24 | N24: 23 | O24: 4.233547925 | P24: 81.25
A25: 25 | B25: 24 | C25: 1.232832618 | D25: 216.75 | E25: 25 | F25: 24 | G25: 2.232832618 | H25: 187.75 | I25: 25 | J25: 24 | K25: 3.232832618 | L25: 262.75 | M25: 25 | N25: 24 | O25: 4.232832618 | P25: 127.75
A26: 26 | B26: 25 | C26: 1.23211731 | D26: 96.25 | E26: 26 | F26: 25 | G26: 2.23211731 | H26: 86.5 | I26: 26 | J26: 25 | K26: 3.23211731 | L26: 197.25 | M26: 26 | N26: 25 | O26: 4.23211731 | P26: 81.25
A27: 27 | B27: 26 | C27: 1.231402002 | D27: 216.75 | E27: 27 | F27: 26 | G27: 2.231402002 | H27: 187.75 | I27: 27 | J27: 26 | K27: 3.231402002 | L27: 262.75 | M27: 27 | N27: 26 | O27: 4.231402002 | P27: 127.75
A28: 28 | B28: 27 | C28: 1.230686695 | D28: 96.25 | E28: 28 | F28: 27 | G28: 2.230686695 | H28: 86.5 | I28: 28 | J28: 27 | K28: 3.230686695 | L28: 197.25 | M28: 28 | N28: 27 | O28: 4.230686695 | P28: 81.25
A29: 29 | B29: 28 | C29: 1.229971387 | D29: 216.75 | E29: 29 | F29: 28 | G29: 2.229971387 | H29: 187.75 | I29: 29 | J29: 28 | K29: 3.229971387 | L29: 262.75 | M29: 29 | N29: 28 | O29: 4.229971387 | P29: 127.75
A30: 30 | B30: 29 | C30: 1.22925608 | D30: 96.25 | E30: 30 | F30: 29 | G30: 2.22925608 | H30: 86.5 | I30: 30 | J30: 29 | K30: 3.22925608 | L30: 197.25 | M30: 30 | N30: 29 | O30: 4.22925608 | P30: 81.25
A31: 31 | B31: 30 | C31: 1.228540772 | D31: 216.75 | E31: 31 | F31: 30 | G31: 2.228540772 | H31: 187.75 | I31: 31 | J31: 30 | K31: 3.228540772 | L31: 262.75 | M31: 31 | N31: 30 | O31: 4.228540772 | P31: 127.75
A32: 32 | B32: 31 | C32: 1.227825464 | D32: 96.25 | E32: 32 | F32: 31 | G32: 2.227825464 | H32: 86.5 | I32: 32 | J32: 31 | K32: 3.227825464 | L32: 197.25 | M32: 32 | N32: 31 | O32: 4.227825464 | P32: 81.25
A33: 33 | B33: 32 | C33: 1.227110157 | D33: 216.75 | E33: 33 | F33: 32 | G33: 2.227110157 | H33: 187.75 | I33: 33 | J33: 32 | K33: 3.227110157 | L33: 262.75 | M33: 33 | N33: 32 | O33: 4.227110157 | P33: 127.75
A34: 34 | B34: 33 | C34: 1.226394849 | D34: 96.25 | E34: 34 | F34: 33 | G34: 2.226394849 | H34: 86.5 | I34: 34 | J34: 33 | K34: 3.226394849 | L34: 197.25 | M34: 34 | N34: 33 | O34: 4.226394849 | P34: 81.25
A35: 35 | B35: 34 | C35: 1.225679542 | D35: 216.75 | E35: 35 | F35: 34 | G35: 2.225679542 | H35: 187.75 | I35: 35 | J35: 34 | K35: 3.225679542 | L35: 262.75 | M35: 35 | N35: 34 | O35: 4.225679542 | P35: 127.75
A36: 36 | B36: 35 | C36: 1.224964234 | D36: 96.25 | E36: 36 | F36: 35 | G36: 2.224964234 | H36: 86.5 | I36: 36 | J36: 35 | K36: 3.224964234 | L36: 197.25 | M36: 36 | N36: 35 | O36: 4.224964234 | P36: 81.25
A37: 37 | B37: 36 | C37: 1.224248926 | D37: 216.75 | E37: 37 | F37: 36 | G37: 2.224248926 | H37: 187.75 | I37: 37 | J37: 36 | K37: 3.224248926 | L37: 262.75 | M37: 37 | N37: 36 | O37: 4.224248926 | P37: 127.75
A38: 38 | B38: 37 | C38: 1.223533619 | D38: 96.25 | E38: 38 | F38: 37 | G38: 2.223533619 | H38: 86.5 | I38: 38 | J38: 37 | K38: 3.223533619 | L38: 197.25 | M38: 38 | N38: 37 | O38: 4.223533619 | P38: 81.25
A39: 39 | B39: 38 | C39: 1.222818311 | D39: 216.75 | E39: 39 | F39: 38 | G39: 2.222818311 | H39: 187.75 | I39: 39 | J39: 38 | K39: 3.222818311 | L39: 262.75 | M39: 39 | N39: 38 | O39: 4.222818311 | P39: 127.75
A40: 40 | B40: 39 | C40: 1.222103004 | D40: 96.25 | E40: 40 | F40: 39 | G40: 2.222103004 | H40: 86.5 | I40: 40 | J40: 39 | K40: 3.222103004 | L40: 197.25 | M40: 40 | N40: 39 | O40: 4.222103004 | P40: 81.25
A41: 41 | B41: 40 | C41: 1.221387696 | D41: 216.75 | E41: 41 | F41: 40 | G41: 2.221387696 | H41: 187.75 | I41: 41 | J41: 40 | K41: 3.221387696 | L41: 262.75 | M41: 41 | N41: 40 | O41: 4.221387696 | P41: 127.75
A42: 42 | B42: 41 | C42: 1.220672388 | D42: 96.25 | E42: 42 | F42: 41 | G42: 2.220672388 | H42: 86.5 | I42: 42 | J42: 41 | K42: 3.220672388 | L42: 197.25 | M42: 42 | N42: 41 | O42: 4.220672388 | P42: 81.25
A43: 43 | B43: 42 | C43: 1.219957081 | D43: 216.75 | E43: 43 | F43: 42 | G43: 2.219957081 | H43: 187.75 | I43: 43 | J43: 42 | K43: 3.219957081 | L43: 262.75 | M43: 43 | N43: 42 | O43: 4.219957081 | P43: 127.75
A44: 44 | B44: 43 | C44: 1.219241773 | D44: 96.25 | E44: 44 | F44: 43 | G44: 2.219241773 | H44: 86.5 | I44: 44 | J44: 43 | K44: 3.219241773 | L44: 197.25 | M44: 44 | N44: 43 | O44: 4.219241773 | P44: 81.25
A45: 45 | B45: 44 | C45: 1.218526466 | D45: 216.75 | E45: 45 | F45: 44 | G45: 2.218526466 | H45: 187.75 | I45: 45 | J45: 44 | K45: 3.218526466 | L45: 262.75 | M45: 45 | N45: 44 | O45: 4.218526466 | P45: 127.75
A46: 46 | B46: 45 | C46: 1.217811158 | D46: 96.25 | E46: 46 | F46: 45 | G46: 2.217811158 | H46: 86.5 | I46: 46 | J46: 45 | K46: 3.217811158 | L46: 197.25 | M46: 46 | N46: 45 | O46: 4.217811158 | P46: 81.25
A47: 47 | B47: 46 | C47: 1.21709585 | D47: 216.75 | E47: 47 | F47: 46 | G47: 2.21709585 | H47: 187.75 | I47: 47 | J47: 46 | K47: 3.21709585 | L47: 262.75 | M47: 47 | N47: 46 | O47: 4.21709585 | P47: 127.75
A48: 48 | B48: 47 | C48: 1.216380543 | D48: 96.25 | E48: 48 | F48: 47 | G48: 2.216380543 | H48: 86.5 | I48: 48 | J48: 47 | K48: 3.216380543 | L48: 197.25 | M48: 48 | N48: 47 | O48: 4.216380543 | P48: 81.25
A49: 49 | B49: 48 | C49: 1.215665235 | D49: 216.75 | E49: 49 | F49: 48 | G49: 2.215665235 | H49: 187.75 | I49: 49 | J49: 48 | K49: 3.215665235 | L49: 262.75 | M49: 49 | N49: 48 | O49: 4.215665235 | P49: 127.75
A50: 50 | B50: 49 | C50: 1.214949928 | D50: 96.25 | E50: 50 | F50: 49 | G50: 2.214949928 | H50: 86.5 | I50: 50 | J50: 49 | K50: 3.214949928 | L50: 197.25 | M50: 50 | N50: 49 | O50: 4.214949928 | P50: 81.25
A51: 51 | B51: 50 | C51: 1.21423462 | D51: 216.75 | E51: 51 | F51: 50 | G51: 2.21423462 | H51: 187.75 | I51: 51 | J51: 50 | K51: 3.21423462 | L51: 262.75 | M51: 51 | N51: 50 | O51: 4.21423462 | P51: 127.75
A52: 52 | B52: 51 | C52: 1.213519312 | D52: 96.25 | E52: 52 | F52: 51 | G52: 2.213519312 | H52: 86.5 | I52: 52 | J52: 51 | K52: 3.213519312 | L52: 197.25 | M52: 52 | N52: 51 | O52: 4.213519312 | P52: 81.25
A53: 53 | B53: 52 | C53: 1.212804005 | D53: 216.75 | E53: 53 | F53: 52 | G53: 2.212804005 | H53: 187.75 | I53: 53 | J53: 52 | K53: 3.212804005 | L53: 262.75 | M53: 53 | N53: 52 | O53: 4.212804005 | P53: 127.75
A54: 54 | B54: 53 | C54: 1.212088697 | D54: 96.25 | E54: 54 | F54: 53 | G54: 2.212088697 | H54: 86.5 | I54: 54 | J54: 53 | K54: 3.212088697 | L54: 197.25 | M54: 54 | N54: 53 | O54: 4.212088697 | P54: 81.25
A55: 55 | B55: 54 | C55: 1.21137339 | D55: 216.75 | E55: 55 | F55: 54 | G55: 2.21137339 | H55: 187.75 | I55: 55 | J55: 54 | K55: 3.21137339 | L55: 262.75 | M55: 55 | N55: 54 | O55: 4.21137339 | P55: 127.75
A56: 56 | B56: 55 | C56: 1.210658082 | D56: 96.25 | E56: 56 | F56: 55 | G56: 2.210658082 | H56: 86.5 | I56: 56 | J56: 55 | K56: 3.210658082 | L56: 197.25 | M56: 56 | N56: 55 | O56: 4.210658082 | P56: 81.25
A57: 57 | B57: 56 | C57: 1.209942774 | D57: 216.75 | E57: 57 | F57: 56 | G57: 2.209942774 | H57: 187.75 | I57: 57 | J57: 56 | K57: 3.209942774 | L57: 262.75 | M57: 57 | N57: 56 | O57: 4.209942774 | P57: 127.75
A58: 58 | B58: 57 | C58: 1.209227467 | D58: 96.25 | E58: 58 | F58: 57 | G58: 2.209227467 | H58: 86.5 | I58: 58 | J58: 57 | K58: 3.209227467 | L58: 197.25 | M58: 58 | N58: 57 | O58: 4.209227467 | P58: 81.25
A59: 59 | B59: 58 | C59: 1.208512159 | D59: 216.75 | E59: 59 | F59: 58 | G59: 2.208512159 | H59: 187.75 | I59: 59 | J59: 58 | K59: 3.208512159 | L59: 262.75 | M59: 59 | N59: 58 | O59: 4.208512159 | P59: 127.75
A60: 60 | B60: 59 | C60: 1.207796852 | D60: 96.25 | E60: 60 | F60: 59 | G60: 2.207796852 | H60: 86.5 | I60: 60 | J60: 59 | K60: 3.207796852 | L60: 197.25 | M60: 60 | N60: 59 | O60: 4.207796852 | P60: 81.25
A61: 61 | B61: 60 | C61: 1.207081544 | D61: 216.75 | E61: 61 | F61: 60 | G61: 2.207081544 | H61: 187.75 | I61: 61 | J61: 60 | K61: 3.207081544 | L61: 262.75 | M61: 61 | N61: 60 | O61: 4.207081544 | P61: 127.75
A62: 62 | B62: 61 | C62: 1.206366236 | D62: 96.25 | E62: 62 | F62: 61 | G62: 2.206366236 | H62: 86.5 | I62: 62 | J62: 61 | K62: 3.206366236 | L62: 197.25 | M62: 62 | N62: 61 | O62: 4.206366236 | P62: 81.25
A63: 63 | B63: 62 | C63: 1.205650929 | D63: 216.75 | E63: 63 | F63: 62 | G63: 2.205650929 | H63: 187.75 | I63: 63 | J63: 62 | K63: 3.205650929 | L63: 262.75 | M63: 63 | N63: 62 | O63: 4.205650929 | P63: 127.75
A64: 64 | B64: 63 | C64: 1.204935621 | D64: 96.25 | E64: 64 | F64: 63 | G64: 2.204935621 | H64: 86.5 | I64: 64 | J64: 63 | K64: 3.204935621 | L64: 197.25 | M64: 64 | N64: 63 | O64: 4.204935621 | P64: 81.25
A65: 65 | B65: =(A65-1) -> 64 | C65: =1.25+B65*-0.0007153076 -> 1.204220314 | D65: =IF(B65/2-INT(B65/2)<0.1,216.75,96.25) -> 216.75 | E65: 65 | F65: =(E65-1) -> 64 | G65: =2.25+F65*-0.0007153076 -> 2.204220314 | H65: =IF(F65/2-INT(F65/2)<0.1,187.75,86.5) -> 187.75 | I65: 65 | J65: =(I65-1) -> 64 | K65: =3.25+J65*-0.0007153076 -> 3.204220314 | L65: =IF(J65/2-INT(J65/2)<0.1,262.75,197.25) -> 262.75 | M65: 65 | N65: =(M65-1) -> 64 | O65: =4.25+N65*-0.0007153076 -> 4.204220314 | P65: =IF(N65/2-INT(N65/2)<0.1,127.75,81.25) -> 127.75
A66: 66 | B66: 65 | C66: 1.203505006 | D66: 96.25 | E66: 66 | F66: 65 | G66: 2.203505006 | H66: 86.5 | I66: 66 | J66: 65 | K66: 3.203505006 | L66: 197.25 | M66: 66 | N66: 65 | O66: 4.203505006 | P66: 81.25
A67: 67 | B67: 66 | C67: 1.202789698 | D67: 216.75 | E67: 67 | F67: 66 | G67: 2.202789698 | H67: 187.75 | I67: 67 | J67: 66 | K67: 3.202789698 | L67: 262.75 | M67: 67 | N67: 66 | O67: 4.202789698 | P67: 127.75
A68: 68 | B68: 67 | C68: 1.202074391 | D68: 96.25 | E68: 68 | F68: 67 | G68: 2.202074391 | H68: 86.5 | I68: 68 | J68: 67 | K68: 3.202074391 | L68: 197.25 | M68: 68 | N68: 67 | O68: 4.202074391 | P68: 81.25
A69: 69 | B69: 68 | C69: 1.201359083 | D69: 216.75 | E69: 69 | F69: 68 | G69: 2.201359083 | H69: 187.75 | I69: 69 | J69: 68 | K69: 3.201359083 | L69: 262.75 | M69: 69 | N69: 68 | O69: 4.201359083 | P69: 127.75
A70: 70 | B70: 69 | C70: 1.200643776 | D70: 96.25 | E70: 70 | F70: 69 | G70: 2.200643776 | H70: 86.5 | I70: 70 | J70: 69 | K70: 3.200643776 | L70: 197.25 | M70: 70 | N70: 69 | O70: 4.200643776 | P70: 81.25
A71: 71 | B71: 70 | C71: 1.199928468 | D71: 216.75 | E71: 71 | F71: 70 | G71: 2.199928468 | H71: 187.75 | I71: 71 | J71: 70 | K71: 3.199928468 | L71: 262.75 | M71: 71 | N71: 70 | O71: 4.199928468 | P71: 127.75
A72: 72 | B72: 71 | C72: 1.19921316 | D72: 96.25 | E72: 72 | F72: 71 | G72: 2.19921316 | H72: 86.5 | I72: 72 | J72: 71 | K72: 3.19921316 | L72: 197.25 | M72: 72 | N72: 71 | O72: 4.19921316 | P72: 81.25
A73: 73 | B73: 72 | C73: 1.198497853 | D73: 216.75 | E73: 73 | F73: 72 | G73: 2.198497853 | H73: 187.75 | I73: 73 | J73: 72 | K73: 3.198497853 | L73: 262.75 | M73: 73 | N73: 72 | O73: 4.198497853 | P73: 127.75
A74: 74 | B74: 73 | C74: 1.197782545 | D74: 96.25 | E74: 74 | F74: 73 | G74: 2.197782545 | H74: 86.5 | I74: 74 | J74: 73 | K74: 3.197782545 | L74: 197.25 | M74: 74 | N74: 73 | O74: 4.197782545 | P74: 81.25
A75: 75 | B75: 74 | C75: 1.197067238 | D75: 216.75 | E75: 75 | F75: 74 | G75: 2.197067238 | H75: 187.75 | I75: 75 | J75: 74 | K75: 3.197067238 | L75: 262.75 | M75: 75 | N75: 74 | O75: 4.197067238 | P75: 127.75
A76: 76 | B76: 75 | C76: 1.19635193 | D76: 96.25 | E76: 76 | F76: 75 | G76: 2.19635193 | H76: 86.5 | I76: 76 | J76: 75 | K76: 3.19635193 | L76: 197.25 | M76: 76 | N76: 75 | O76: 4.19635193 | P76: 81.25
A77: 77 | B77: 76 | C77: 1.195636622 | D77: 216.75 | E77: 77 | F77: 76 | G77: 2.195636622 | H77: 187.75 | I77: 77 | J77: 76 | K77: 3.195636622 | L77: 262.75 | M77: 77 | N77: 76 | O77: 4.195636622 | P77: 127.75
A78: 78 | B78: 77 | C78: 1.194921315 | D78: 96.25 | E78: 78 | F78: 77 | G78: 2.194921315 | H78: 86.5 | I78: 78 | J78: 77 | K78: 3.194921315 | L78: 197.25 | M78: 78 | N78: 77 | O78: 4.194921315 | P78: 81.25
A79: 79 | B79: 78 | C79: 1.194206007 | D79: 216.75 | E79: 79 | F79: 78 | G79: 2.194206007 | H79: 187.75 | I79: 79 | J79: 78 | K79: 3.194206007 | L79: 262.75 | M79: 79 | N79: 78 | O79: 4.194206007 | P79: 127.75
A80: 80 | B80: 79 | C80: 1.1934907 | D80: 96.25 | E80: 80 | F80: 79 | G80: 2.1934907 | H80: 86.5 | I80: 80 | J80: 79 | K80: 3.1934907 | L80: 197.25 | M80: 80 | N80: 79 | O80: 4.1934907 | P80: 81.25
A81: 81 | B81: 80 | C81: 1.192775392 | D81: 216.75 | E81: 81 | F81: 80 | G81: 2.192775392 | H81: 187.75 | I81: 81 | J81: 80 | K81: 3.192775392 | L81: 262.75 | M81: 81 | N81: 80 | O81: 4.192775392 | P81: 127.75
A82: 82 | B82: 81 | C82: 1.192060084 | D82: 96.25 | E82: 82 | F82: 81 | G82: 2.192060084 | H82: 86.5 | I82: 82 | J82: 81 | K82: 3.192060084 | L82: 197.25 | M82: 82 | N82: 81 | O82: 4.192060084 | P82: 81.25
A83: 83 | B83: 82 | C83: 1.191344777 | D83: 216.75 | E83: 83 | F83: 82 | G83: 2.191344777 | H83: 187.75 | I83: 83 | J83: 82 | K83: 3.191344777 | L83: 262.75 | M83: 83 | N83: 82 | O83: 4.191344777 | P83: 127.75
A84: 84 | B84: 83 | C84: 1.190629469 | D84: 96.25 | E84: 84 | F84: 83 | G84: 2.190629469 | H84: 86.5 | I84: 84 | J84: 83 | K84: 3.190629469 | L84: 197.25 | M84: 84 | N84: 83 | O84: 4.190629469 | P84: 81.25
A85: 85 | B85: 84 | C85: 1.189914162 | D85: 216.75 | E85: 85 | F85: 84 | G85: 2.189914162 | H85: 187.75 | I85: 85 | J85: 84 | K85: 3.189914162 | L85: 262.75 | M85: 85 | N85: 84 | O85: 4.189914162 | P85: 127.75
A86: 86 | B86: 85 | C86: 1.189198854 | D86: 96.25 | E86: 86 | F86: 85 | G86: 2.189198854 | H86: 86.5 | I86: 86 | J86: 85 | K86: 3.189198854 | L86: 197.25 | M86: 86 | N86: 85 | O86: 4.189198854 | P86: 81.25
A87: 87 | B87: 86 | C87: 1.188483546 | D87: 216.75 | E87: 87 | F87: 86 | G87: 2.188483546 | H87: 187.75 | I87: 87 | J87: 86 | K87: 3.188483546 | L87: 262.75 | M87: 87 | N87: 86 | O87: 4.188483546 | P87: 127.75
A88: 88 | B88: 87 | C88: 1.187768239 | D88: 96.25 | E88: 88 | F88: 87 | G88: 2.187768239 | H88: 86.5 | I88: 88 | J88: 87 | K88: 3.187768239 | L88: 197.25 | M88: 88 | N88: 87 | O88: 4.187768239 | P88: 81.25
A89: 89 | B89: 88 | C89: 1.187052931 | D89: 216.75 | E89: 89 | F89: 88 | G89: 2.187052931 | H89: 187.75 | I89: 89 | J89: 88 | K89: 3.187052931 | L89: 262.75 | M89: 89 | N89: 88 | O89: 4.187052931 | P89: 127.75
A90: 90 | B90: 89 | C90: 1.186337624 | D90: 96.25 | E90: 90 | F90: 89 | G90: 2.186337624 | H90: 86.5 | I90: 90 | J90: 89 | K90: 3.186337624 | L90: 197.25 | M90: 90 | N90: 89 | O90: 4.186337624 | P90: 81.25
A91: 91 | B91: 90 | C91: 1.185622316 | D91: 216.75 | E91: 91 | F91: 90 | G91: 2.185622316 | H91: 187.75 | I91: 91 | J91: 90 | K91: 3.185622316 | L91: 262.75 | M91: 91 | N91: 90 | O91: 4.185622316 | P91: 127.75
A92: 92 | B92: 91 | C92: 1.184907008 | D92: 96.25 | E92: 92 | F92: 91 | G92: 2.184907008 | H92: 86.5 | I92: 92 | J92: 91 | K92: 3.184907008 | L92: 197.25 | M92: 92 | N92: 91 | O92: 4.184907008 | P92: 81.25
A93: 93 | B93: 92 | C93: 1.184191701 | D93: 216.75 | E93: 93 | F93: 92 | G93: 2.184191701 | H93: 187.75 | I93: 93 | J93: 92 | K93: 3.184191701 | L93: 262.75 | M93: 93 | N93: 92 | O93: 4.184191701 | P93: 127.75
A94: 94 | B94: 93 | C94: 1.183476393 | D94: 96.25 | E94: 94 | F94: 93 | G94: 2.183476393 | H94: 86.5 | I94: 94 | J94: 93 | K94: 3.183476393 | L94: 197.25 | M94: 94 | N94: 93 | O94: 4.183476393 | P94: 81.25
A95: 95 | B95: 94 | C95: 1.182761086 | D95: 216.75 | E95: 95 | F95: 94 | G95: 2.182761086 | H95: 187.75 | I95: 95 | J95: 94 | K95: 3.182761086 | L95: 262.75 | M95: 95 | N95: 94 | O95: 4.182761086 | P95: 127.75
A96: 96 | B96: 95 | C96: 1.182045778 | D96: 96.25 | E96: 96 | F96: 95 | G96: 2.182045778 | H96: 86.5 | I96: 96 | J96: 95 | K96: 3.182045778 | L96: 197.25 | M96: 96 | N96: 95 | O96: 4.182045778 | P96: 81.25
A97: 97 | B97: 96 | C97: 1.18133047 | D97: 216.75 | E97: 97 | F97: 96 | G97: 2.18133047 | H97: 187.75 | I97: 97 | J97: 96 | K97: 3.18133047 | L97: 262.75 | M97: 97 | N97: 96 | O97: 4.18133047 | P97: 127.75
A98: 98 | B98: 97 | C98: 1.180615163 | D98: 96.25 | E98: 98 | F98: 97 | G98: 2.180615163 | H98: 86.5 | I98: 98 | J98: 97 | K98: 3.180615163 | L98: 197.25 | M98: 98 | N98: 97 | O98: 4.180615163 | P98: 81.25
A99: 99 | B99: 98 | C99: 1.179899855 | D99: 216.75 | E99: 99 | F99: 98 | G99: 2.179899855 | H99: 187.75 | I99: 99 | J99: 98 | K99: 3.179899855 | L99: 262.75 | M99: 99 | N99: 98 | O99: 4.179899855 | P99: 127.75
A100: 100 | B100: 99 | C100: 1.179184548 | D100: 96.25 | E100: 100 | F100: 99 | G100: 2.179184548 | H100: 86.5 | I100: 100 | J100: 99 | K100: 3.179184548 | L100: 197.25 | M100: 100 | N100: 99 | O100: 4.179184548 | P100: 81.25
A101: 101 | B101: 100 | C101: 1.17846924 | D101: 216.75 | E101: 101 | F101: 100 | G101: 2.17846924 | H101: 187.75 | I101: 101 | J101: 100 | K101: 3.17846924 | L101: 262.75 | M101: 101 | N101: 100 | O101: 4.17846924 | P101: 127.75
A102: 102 | B102: 101 | C102: 1.177753932 | D102: 96.25 | E102: 102 | F102: 101 | G102: 2.177753932 | H102: 86.5 | I102: 102 | J102: 101 | K102: 3.177753932 | L102: 197.25 | M102: 102 | N102: 101 | O102: 4.177753932 | P102: 81.25
A103: 103 | B103: 102 | C103: 1.177038625 | D103: 216.75 | E103: 103 | F103: 102 | G103: 2.177038625 | H103: 187.75 | I103: 103 | J103: 102 | K103: 3.177038625 | L103: 262.75 | M103: 103 | N103: 102 | O103: 4.177038625 | P103: 127.75
A104: 104 | B104: 103 | C104: 1.176323317 | D104: 96.25 | E104: 104 | F104: 103 | G104: 2.176323317 | H104: 86.5 | I104: 104 | J104: 103 | K104: 3.176323317 | L104: 197.25 | M104: 104 | N104: 103 | O104: 4.176323317 | P104: 81.25
A105: 105 | B105: 104 | C105: 1.17560801 | D105: 216.75 | E105: 105 | F105: 104 | G105: 2.17560801 | H105: 187.75 | I105: 105 | J105: 104 | K105: 3.17560801 | L105: 262.75 | M105: 105 | N105: 104 | O105: 4.17560801 | P105: 127.75
A106: 106 | B106: 105 | C106: 1.174892702 | D106: 96.25 | E106: 106 | F106: 105 | G106: 2.174892702 | H106: 86.5 | I106: 106 | J106: 105 | K106: 3.174892702 | L106: 197.25 | M106: 106 | N106: 105 | O106: 4.174892702 | P106: 81.25
A107: 107 | B107: 106 | C107: 1.174177394 | D107: 216.75 | E107: 107 | F107: 106 | G107: 2.174177394 | H107: 187.75 | I107: 107 | J107: 106 | K107: 3.174177394 | L107: 262.75 | M107: 107 | N107: 106 | O107: 4.174177394 | P107: 127.75
A108: 108 | B108: 107 | C108: 1.173462087 | D108: 96.25 | E108: 108 | F108: 107 | G108: 2.173462087 | H108: 86.5 | I108: 108 | J108: 107 | K108: 3.173462087 | L108: 197.25 | M108: 108 | N108: 107 | O108: 4.173462087 | P108: 81.25
A109: 109 | B109: 108 | C109: 1.172746779 | D109: 216.75 | E109: 109 | F109: 108 | G109: 2.172746779 | H109: 187.75 | I109: 109 | J109: 108 | K109: 3.172746779 | L109: 262.75 | M109: 109 | N109: 108 | O109: 4.172746779 | P109: 127.75
A110: 110 | B110: 109 | C110: 1.172031472 | D110: 96.25 | E110: 110 | F110: 109 | G110: 2.172031472 | H110: 86.5 | I110: 110 | J110: 109 | K110: 3.172031472 | L110: 197.25 | M110: 110 | N110: 109 | O110: 4.172031472 | P110: 81.25
A111: 111 | B111: 110 | C111: 1.171316164 | D111: 216.75 | E111: 111 | F111: 110 | G111: 2.171316164 | H111: 187.75 | I111: 111 | J111: 110 | K111: 3.171316164 | L111: 262.75 | M111: 111 | N111: 110 | O111: 4.171316164 | P111: 127.75
A112: 112 | B112: 111 | C112: 1.170600856 | D112: 96.25 | E112: 112 | F112: 111 | G112: 2.170600856 | H112: 86.5 | I112: 112 | J112: 111 | K112: 3.170600856 | L112: 197.25 | M112: 112 | N112: 111 | O112: 4.170600856 | P112: 81.25
A113: 113 | B113: 112 | C113: 1.169885549 | D113: 216.75 | E113: 113 | F113: 112 | G113: 2.169885549 | H113: 187.75 | I113: 113 | J113: 112 | K113: 3.169885549 | L113: 262.75 | M113: 113 | N113: 112 | O113: 4.169885549 | P113: 127.75
A114: 114 | B114: 113 | C114: 1.169170241 | D114: 96.25 | E114: 114 | F114: 113 | G114: 2.169170241 | H114: 86.5 | I114: 114 | J114: 113 | K114: 3.169170241 | L114: 197.25 | M114: 114 | N114: 113 | O114: 4.169170241 | P114: 81.25
A115: 115 | B115: 114 | C115: 1.168454934 | D115: 216.75 | E115: 115 | F115: 114 | G115: 2.168454934 | H115: 187.75 | I115: 115 | J115: 114 | K115: 3.168454934 | L115: 262.75 | M115: 115 | N115: 114 | O115: 4.168454934 | P115: 127.75
A116: 116 | B116: 115 | C116: 1.167739626 | D116: 96.25 | E116: 116 | F116: 115 | G116: 2.167739626 | H116: 86.5 | I116: 116 | J116: 115 | K116: 3.167739626 | L116: 197.25 | M116: 116 | N116: 115 | O116: 4.167739626 | P116: 81.25
A117: 117 | B117: 116 | C117: 1.167024318 | D117: 216.75 | E117: 117 | F117: 116 | G117: 2.167024318 | H117: 187.75 | I117: 117 | J117: 116 | K117: 3.167024318 | L117: 262.75 | M117: 117 | N117: 116 | O117: 4.167024318 | P117: 127.75
A118: 118 | B118: 117 | C118: 1.166309011 | D118: 96.25 | E118: 118 | F118: 117 | G118: 2.166309011 | H118: 86.5 | I118: 118 | J118: 117 | K118: 3.166309011 | L118: 197.25 | M118: 118 | N118: 117 | O118: 4.166309011 | P118: 81.25
A119: 119 | B119: 118 | C119: 1.165593703 | D119: 216.75 | E119: 119 | F119: 118 | G119: 2.165593703 | H119: 187.75 | I119: 119 | J119: 118 | K119: 3.165593703 | L119: 262.75 | M119: 119 | N119: 118 | O119: 4.165593703 | P119: 127.75
A120: 120 | B120: 119 | C120: 1.164878396 | D120: 96.25 | E120: 120 | F120: 119 | G120: 2.164878396 | H120: 86.5 | I120: 120 | J120: 119 | K120: 3.164878396 | L120: 197.25 | M120: 120 | N120: 119 | O120: 4.164878396 | P120: 81.25
A121: 121 | B121: 120 | C121: 1.164163088 | D121: 216.75 | E121: 121 | F121: 120 | G121: 2.164163088 | H121: 187.75 | I121: 121 | J121: 120 | K121: 3.164163088 | L121: 262.75 | M121: 121 | N121: 120 | O121: 4.164163088 | P121: 127.75
A122: 122 | B122: 121 | C122: 1.16344778 | D122: 96.25 | E122: 122 | F122: 121 | G122: 2.16344778 | H122: 86.5 | I122: 122 | J122: 121 | K122: 3.16344778 | L122: 197.25 | M122: 122 | N122: 121 | O122: 4.16344778 | P122: 81.25
A123: 123 | B123: 122 | C123: 1.162732473 | D123: 216.75 | E123: 123 | F123: 122 | G123: 2.162732473 | H123: 187.75 | I123: 123 | J123: 122 | K123: 3.162732473 | L123: 262.75 | M123: 123 | N123: 122 | O123: 4.162732473 | P123: 127.75
A124: 124 | B124: 123 | C124: 1.162017165 | D124: 96.25 | E124: 124 | F124: 123 | G124: 2.162017165 | H124: 86.5 | I124: 124 | J124: 123 | K124: 3.162017165 | L124: 197.25 | M124: 124 | N124: 123 | O124: 4.162017165 | P124: 81.25
A125: 125 | B125: 124 | C125: 1.161301858 | D125: 216.75 | E125: 125 | F125: 124 | G125: 2.161301858 | H125: 187.75 | I125: 125 | J125: 124 | K125: 3.161301858 | L125: 262.75 | M125: 125 | N125: 124 | O125: 4.161301858 | P125: 127.75
A126: 126 | B126: 125 | C126: 1.16058655 | D126: 96.25 | E126: 126 | F126: 125 | G126: 2.16058655 | H126: 86.5 | I126: 126 | J126: 125 | K126: 3.16058655 | L126: 197.25 | M126: 126 | N126: 125 | O126: 4.16058655 | P126: 81.25
A127: 127 | B127: 126 | C127: 1.159871242 | D127: 216.75 | E127: 127 | F127: 126 | G127: 2.159871242 | H127: 187.75 | I127: 127 | J127: 126 | K127: 3.159871242 | L127: 262.75 | M127: 127 | N127: 126 | O127: 4.159871242 | P127: 127.75
A128: 128 | B128: 127 | C128: 1.159155935 | D128: 96.25 | E128: 128 | F128: 127 | G128: 2.159155935 | H128: 86.5 | I128: 128 | J128: 127 | K128: 3.159155935 | L128: 197.25 | M128: 128 | N128: 127 | O128: 4.159155935 | P128: 81.25
A129: 129 | B129: =(A129-1) -> 128 | C129: =1.25+B129*-0.0007153076 -> 1.158440627 | D129: =IF(B129/2-INT(B129/2)<0.1,216.75,96.25) -> 216.75 | E129: 129 | F129: =(E129-1) -> 128 | G129: =2.25+F129*-0.0007153076 -> 2.158440627 | H129: =IF(F129/2-INT(F129/2)<0.1,187.75,86.5) -> 187.75 | I129: 129 | J129: =(I129-1) -> 128 | K129: =3.25+J129*-0.0007153076 -> 3.158440627 | L129: =IF(J129/2-INT(J129/2)<0.1,262.75,197.25) -> 262.75 | M129: 129 | N129: =(M129-1) -> 128 | O129: =4.25+N129*-0.0007153076 -> 4.158440627 | P129: =IF(N129/2-INT(N129/2)<0.1,127.75,81.25) -> 127.75
A130: 130 | B130: 129 | C130: 1.15772532 | D130: 96.25 | E130: 130 | F130: 129 | G130: 2.15772532 | H130: 86.5 | I130: 130 | J130: 129 | K130: 3.15772532 | L130: 197.25 | M130: 130 | N130: 129 | O130: 4.15772532 | P130: 81.25
A131: 131 | B131: 130 | C131: 1.157010012 | D131: 216.75 | E131: 131 | F131: 130 | G131: 2.157010012 | H131: 187.75 | I131: 131 | J131: 130 | K131: 3.157010012 | L131: 262.75 | M131: 131 | N131: 130 | O131: 4.157010012 | P131: 127.75
A132: 132 | B132: 131 | C132: 1.156294704 | D132: 96.25 | E132: 132 | F132: 131 | G132: 2.156294704 | H132: 86.5 | I132: 132 | J132: 131 | K132: 3.156294704 | L132: 197.25 | M132: 132 | N132: 131 | O132: 4.156294704 | P132: 81.25
A133: 133 | B133: 132 | C133: 1.155579397 | D133: 216.75 | E133: 133 | F133: 132 | G133: 2.155579397 | H133: 187.75 | I133: 133 | J133: 132 | K133: 3.155579397 | L133: 262.75 | M133: 133 | N133: 132 | O133: 4.155579397 | P133: 127.75
A134: 134 | B134: 133 | C134: 1.154864089 | D134: 96.25 | E134: 134 | F134: 133 | G134: 2.154864089 | H134: 86.5 | I134: 134 | J134: 133 | K134: 3.154864089 | L134: 197.25 | M134: 134 | N134: 133 | O134: 4.154864089 | P134: 81.25
A135: 135 | B135: 134 | C135: 1.154148782 | D135: 216.75 | E135: 135 | F135: 134 | G135: 2.154148782 | H135: 187.75 | I135: 135 | J135: 134 | K135: 3.154148782 | L135: 262.75 | M135: 135 | N135: 134 | O135: 4.154148782 | P135: 127.75
A136: 136 | B136: 135 | C136: 1.153433474 | D136: 96.25 | E136: 136 | F136: 135 | G136: 2.153433474 | H136: 86.5 | I136: 136 | J136: 135 | K136: 3.153433474 | L136: 197.25 | M136: 136 | N136: 135 | O136: 4.153433474 | P136: 81.25
A137: 137 | B137: 136 | C137: 1.152718166 | D137: 216.75 | E137: 137 | F137: 136 | G137: 2.152718166 | H137: 187.75 | I137: 137 | J137: 136 | K137: 3.152718166 | L137: 262.75 | M137: 137 | N137: 136 | O137: 4.152718166 | P137: 127.75
A138: 138 | B138: 137 | C138: 1.152002859 | D138: 96.25 | E138: 138 | F138: 137 | G138: 2.152002859 | H138: 86.5 | I138: 138 | J138: 137 | K138: 3.152002859 | L138: 197.25 | M138: 138 | N138: 137 | O138: 4.152002859 | P138: 81.25
A139: 139 | B139: 138 | C139: 1.151287551 | D139: 216.75 | E139: 139 | F139: 138 | G139: 2.151287551 | H139: 187.75 | I139: 139 | J139: 138 | K139: 3.151287551 | L139: 262.75 | M139: 139 | N139: 138 | O139: 4.151287551 | P139: 127.75
A140: 140 | B140: 139 | C140: 1.150572244 | D140: 96.25 | E140: 140 | F140: 139 | G140: 2.150572244 | H140: 86.5 | I140: 140 | J140: 139 | K140: 3.150572244 | L140: 197.25 | M140: 140 | N140: 139 | O140: 4.150572244 | P140: 81.25
A141: 141 | B141: 140 | C141: 1.149856936 | D141: 216.75 | E141: 141 | F141: 140 | G141: 2.149856936 | H141: 187.75 | I141: 141 | J141: 140 | K141: 3.149856936 | L141: 262.75 | M141: 141 | N141: 140 | O141: 4.149856936 | P141: 127.75
A142: 142 | B142: 141 | C142: 1.149141628 | D142: 96.25 | E142: 142 | F142: 141 | G142: 2.149141628 | H142: 86.5 | I142: 142 | J142: 141 | K142: 3.149141628 | L142: 197.25 | M142: 142 | N142: 141 | O142: 4.149141628 | P142: 81.25
A143: 143 | B143: 142 | C143: 1.148426321 | D143: 216.75 | E143: 143 | F143: 142 | G143: 2.148426321 | H143: 187.75 | I143: 143 | J143: 142 | K143: 3.148426321 | L143: 262.75 | M143: 143 | N143: 142 | O143: 4.148426321 | P143: 127.75
A144: 144 | B144: 143 | C144: 1.147711013 | D144: 96.25 | E144: 144 | F144: 143 | G144: 2.147711013 | H144: 86.5 | I144: 144 | J144: 143 | K144: 3.147711013 | L144: 197.25 | M144: 144 | N144: 143 | O144: 4.147711013 | P144: 81.25
A145: 145 | B145: 144 | C145: 1.146995706 | D145: 216.75 | E145: 145 | F145: 144 | G145: 2.146995706 | H145: 187.75 | I145: 145 | J145: 144 | K145: 3.146995706 | L145: 262.75 | M145: 145 | N145: 144 | O145: 4.146995706 | P145: 127.75
A146: 146 | B146: 145 | C146: 1.146280398 | D146: 96.25 | E146: 146 | F146: 145 | G146: 2.146280398 | H146: 86.5 | I146: 146 | J146: 145 | K146: 3.146280398 | L146: 197.25 | M146: 146 | N146: 145 | O146: 4.146280398 | P146: 81.25
A147: 147 | B147: 146 | C147: 1.14556509 | D147: 216.75 | E147: 147 | F147: 146 | G147: 2.14556509 | H147: 187.75 | I147: 147 | J147: 146 | K147: 3.14556509 | L147: 262.75 | M147: 147 | N147: 146 | O147: 4.14556509 | P147: 127.75
A148: 148 | B148: 147 | C148: 1.144849783 | D148: 96.25 | E148: 148 | F148: 147 | G148: 2.144849783 | H148: 86.5 | I148: 148 | J148: 147 | K148: 3.144849783 | L148: 197.25 | M148: 148 | N148: 147 | O148: 4.144849783 | P148: 81.25
A149: 149 | B149: 148 | C149: 1.144134475 | D149: 216.75 | E149: 149 | F149: 148 | G149: 2.144134475 | H149: 187.75 | I149: 149 | J149: 148 | K149: 3.144134475 | L149: 262.75 | M149: 149 | N149: 148 | O149: 4.144134475 | P149: 127.75
A150: 150 | B150: 149 | C150: 1.143419168 | D150: 96.25 | E150: 150 | F150: 149 | G150: 2.143419168 | H150: 86.5 | I150: 150 | J150: 149 | K150: 3.143419168 | L150: 197.25 | M150: 150 | N150: 149 | O150: 4.143419168 | P150: 81.25
A151: 151 | B151: 150 | C151: 1.14270386 | D151: 216.75 | E151: 151 | F151: 150 | G151: 2.14270386 | H151: 187.75 | I151: 151 | J151: 150 | K151: 3.14270386 | L151: 262.75 | M151: 151 | N151: 150 | O151: 4.14270386 | P151: 127.75
A152: 152 | B152: 151 | C152: 1.141988552 | D152: 96.25 | E152: 152 | F152: 151 | G152: 2.141988552 | H152: 86.5 | I152: 152 | J152: 151 | K152: 3.141988552 | L152: 197.25 | M152: 152 | N152: 151 | O152: 4.141988552 | P152: 81.25
A153: 153 | B153: 152 | C153: 1.141273245 | D153: 216.75 | E153: 153 | F153: 152 | G153: 2.141273245 | H153: 187.75 | I153: 153 | J153: 152 | K153: 3.141273245 | L153: 262.75 | M153: 153 | N153: 152 | O153: 4.141273245 | P153: 127.75
A154: 154 | B154: 153 | C154: 1.140557937 | D154: 96.25 | E154: 154 | F154: 153 | G154: 2.140557937 | H154: 86.5 | I154: 154 | J154: 153 | K154: 3.140557937 | L154: 197.25 | M154: 154 | N154: 153 | O154: 4.140557937 | P154: 81.25
A155: 155 | B155: 154 | C155: 1.13984263 | D155: 216.75 | E155: 155 | F155: 154 | G155: 2.13984263 | H155: 187.75 | I155: 155 | J155: 154 | K155: 3.13984263 | L155: 262.75 | M155: 155 | N155: 154 | O155: 4.13984263 | P155: 127.75
A156: 156 | B156: 155 | C156: 1.139127322 | D156: 96.25 | E156: 156 | F156: 155 | G156: 2.139127322 | H156: 86.5 | I156: 156 | J156: 155 | K156: 3.139127322 | L156: 197.25 | M156: 156 | N156: 155 | O156: 4.139127322 | P156: 81.25
A157: 157 | B157: 156 | C157: 1.138412014 | D157: 216.75 | E157: 157 | F157: 156 | G157: 2.138412014 | H157: 187.75 | I157: 157 | J157: 156 | K157: 3.138412014 | L157: 262.75 | M157: 157 | N157: 156 | O157: 4.138412014 | P157: 127.75
A158: 158 | B158: 157 | C158: 1.137696707 | D158: 96.25 | E158: 158 | F158: 157 | G158: 2.137696707 | H158: 86.5 | I158: 158 | J158: 157 | K158: 3.137696707 | L158: 197.25 | M158: 158 | N158: 157 | O158: 4.137696707 | P158: 81.25
A159: 159 | B159: 158 | C159: 1.136981399 | D159: 216.75 | E159: 159 | F159: 158 | G159: 2.136981399 | H159: 187.75 | I159: 159 | J159: 158 | K159: 3.136981399 | L159: 262.75 | M159: 159 | N159: 158 | O159: 4.136981399 | P159: 127.75
A160: 160 | B160: 159 | C160: 1.136266092 | D160: 96.25 | E160: 160 | F160: 159 | G160: 2.136266092 | H160: 86.5 | I160: 160 | J160: 159 | K160: 3.136266092 | L160: 197.25 | M160: 160 | N160: 159 | O160: 4.136266092 | P160: 81.25
A161: 161 | B161: 160 | C161: 1.135550784 | D161: 216.75 | E161: 161 | F161: 160 | G161: 2.135550784 | H161: 187.75 | I161: 161 | J161: 160 | K161: 3.135550784 | L161: 262.75 | M161: 161 | N161: 160 | O161: 4.135550784 | P161: 127.75
A162: 162 | B162: 161 | C162: 1.134835476 | D162: 96.25 | E162: 162 | F162: 161 | G162: 2.134835476 | H162: 86.5 | I162: 162 | J162: 161 | K162: 3.134835476 | L162: 197.25 | M162: 162 | N162: 161 | O162: 4.134835476 | P162: 81.25
A163: 163 | B163: 162 | C163: 1.134120169 | D163: 216.75 | E163: 163 | F163: 162 | G163: 2.134120169 | H163: 187.75 | I163: 163 | J163: 162 | K163: 3.134120169 | L163: 262.75 | M163: 163 | N163: 162 | O163: 4.134120169 | P163: 127.75
A164: 164 | B164: 163 | C164: 1.133404861 | D164: 96.25 | E164: 164 | F164: 163 | G164: 2.133404861 | H164: 86.5 | I164: 164 | J164: 163 | K164: 3.133404861 | L164: 197.25 | M164: 164 | N164: 163 | O164: 4.133404861 | P164: 81.25
A165: 165 | B165: 164 | C165: 1.132689554 | D165: 216.75 | E165: 165 | F165: 164 | G165: 2.132689554 | H165: 187.75 | I165: 165 | J165: 164 | K165: 3.132689554 | L165: 262.75 | M165: 165 | N165: 164 | O165: 4.132689554 | P165: 127.75
A166: 166 | B166: 165 | C166: 1.131974246 | D166: 96.25 | E166: 166 | F166: 165 | G166: 2.131974246 | H166: 86.5 | I166: 166 | J166: 165 | K166: 3.131974246 | L166: 197.25 | M166: 166 | N166: 165 | O166: 4.131974246 | P166: 81.25
A167: 167 | B167: 166 | C167: 1.131258938 | D167: 216.75 | E167: 167 | F167: 166 | G167: 2.131258938 | H167: 187.75 | I167: 167 | J167: 166 | K167: 3.131258938 | L167: 262.75 | M167: 167 | N167: 166 | O167: 4.131258938 | P167: 127.75
A168: 168 | B168: 167 | C168: 1.130543631 | D168: 96.25 | E168: 168 | F168: 167 | G168: 2.130543631 | H168: 86.5 | I168: 168 | J168: 167 | K168: 3.130543631 | L168: 197.25 | M168: 168 | N168: 167 | O168: 4.130543631 | P168: 81.25
A169: 169 | B169: 168 | C169: 1.129828323 | D169: 216.75 | E169: 169 | F169: 168 | G169: 2.129828323 | H169: 187.75 | I169: 169 | J169: 168 | K169: 3.129828323 | L169: 262.75 | M169: 169 | N169: 168 | O169: 4.129828323 | P169: 127.75
A170: 170 | B170: 169 | C170: 1.129113016 | D170: 96.25 | E170: 170 | F170: 169 | G170: 2.129113016 | H170: 86.5 | I170: 170 | J170: 169 | K170: 3.129113016 | L170: 197.25 | M170: 170 | N170: 169 | O170: 4.129113016 | P170: 81.25
A171: 171 | B171: 170 | C171: 1.128397708 | D171: 216.75 | E171: 171 | F171: 170 | G171: 2.128397708 | H171: 187.75 | I171: 171 | J171: 170 | K171: 3.128397708 | L171: 262.75 | M171: 171 | N171: 170 | O171: 4.128397708 | P171: 127.75
A172: 172 | B172: 171 | C172: 1.1276824 | D172: 96.25 | E172: 172 | F172: 171 | G172: 2.1276824 | H172: 86.5 | I172: 172 | J172: 171 | K172: 3.1276824 | L172: 197.25 | M172: 172 | N172: 171 | O172: 4.1276824 | P172: 81.25
A173: 173 | B173: 172 | C173: 1.126967093 | D173: 216.75 | E173: 173 | F173: 172 | G173: 2.126967093 | H173: 187.75 | I173: 173 | J173: 172 | K173: 3.126967093 | L173: 262.75 | M173: 173 | N173: 172 | O173: 4.126967093 | P173: 127.75
A174: 174 | B174: 173 | C174: 1.126251785 | D174: 96.25 | E174: 174 | F174: 173 | G174: 2.126251785 | H174: 86.5 | I174: 174 | J174: 173 | K174: 3.126251785 | L174: 197.25 | M174: 174 | N174: 173 | O174: 4.126251785 | P174: 81.25
A175: 175 | B175: 174 | C175: 1.125536478 | D175: 216.75 | E175: 175 | F175: 174 | G175: 2.125536478 | H175: 187.75 | I175: 175 | J175: 174 | K175: 3.125536478 | L175: 262.75 | M175: 175 | N175: 174 | O175: 4.125536478 | P175: 127.75
A176: 176 | B176: 175 | C176: 1.12482117 | D176: 96.25 | E176: 176 | F176: 175 | G176: 2.12482117 | H176: 86.5 | I176: 176 | J176: 175 | K176: 3.12482117 | L176: 197.25 | M176: 176 | N176: 175 | O176: 4.12482117 | P176: 81.25
A177: 177 | B177: 176 | C177: 1.124105862 | D177: 216.75 | E177: 177 | F177: 176 | G177: 2.124105862 | H177: 187.75 | I177: 177 | J177: 176 | K177: 3.124105862 | L177: 262.75 | M177: 177 | N177: 176 | O177: 4.124105862 | P177: 127.75
A178: 178 | B178: 177 | C178: 1.123390555 | D178: 96.25 | E178: 178 | F178: 177 | G178: 2.123390555 | H178: 86.5 | I178: 178 | J178: 177 | K178: 3.123390555 | L178: 197.25 | M178: 178 | N178: 177 | O178: 4.123390555 | P178: 81.25
A179: 179 | B179: 178 | C179: 1.122675247 | D179: 216.75 | E179: 179 | F179: 178 | G179: 2.122675247 | H179: 187.75 | I179: 179 | J179: 178 | K179: 3.122675247 | L179: 262.75 | M179: 179 | N179: 178 | O179: 4.122675247 | P179: 127.75
A180: 180 | B180: 179 | C180: 1.12195994 | D180: 96.25 | E180: 180 | F180: 179 | G180: 2.12195994 | H180: 86.5 | I180: 180 | J180: 179 | K180: 3.12195994 | L180: 197.25 | M180: 180 | N180: 179 | O180: 4.12195994 | P180: 81.25
A181: 181 | B181: 180 | C181: 1.121244632 | D181: 216.75 | E181: 181 | F181: 180 | G181: 2.121244632 | H181: 187.75 | I181: 181 | J181: 180 | K181: 3.121244632 | L181: 262.75 | M181: 181 | N181: 180 | O181: 4.121244632 | P181: 127.75
A182: 182 | B182: 181 | C182: 1.120529324 | D182: 96.25 | E182: 182 | F182: 181 | G182: 2.120529324 | H182: 86.5 | I182: 182 | J182: 181 | K182: 3.120529324 | L182: 197.25 | M182: 182 | N182: 181 | O182: 4.120529324 | P182: 81.25
A183: 183 | B183: 182 | C183: 1.119814017 | D183: 216.75 | E183: 183 | F183: 182 | G183: 2.119814017 | H183: 187.75 | I183: 183 | J183: 182 | K183: 3.119814017 | L183: 262.75 | M183: 183 | N183: 182 | O183: 4.119814017 | P183: 127.75
A184: 184 | B184: 183 | C184: 1.119098709 | D184: 96.25 | E184: 184 | F184: 183 | G184: 2.119098709 | H184: 86.5 | I184: 184 | J184: 183 | K184: 3.119098709 | L184: 197.25 | M184: 184 | N184: 183 | O184: 4.119098709 | P184: 81.25
A185: 185 | B185: 184 | C185: 1.118383402 | D185: 216.75 | E185: 185 | F185: 184 | G185: 2.118383402 | H185: 187.75 | I185: 185 | J185: 184 | K185: 3.118383402 | L185: 262.75 | M185: 185 | N185: 184 | O185: 4.118383402 | P185: 127.75
A186: 186 | B186: 185 | C186: 1.117668094 | D186: 96.25 | E186: 186 | F186: 185 | G186: 2.117668094 | H186: 86.5 | I186: 186 | J186: 185 | K186: 3.117668094 | L186: 197.25 | M186: 186 | N186: 185 | O186: 4.117668094 | P186: 81.25
A187: 187 | B187: 186 | C187: 1.116952786 | D187: 216.75 | E187: 187 | F187: 186 | G187: 2.116952786 | H187: 187.75 | I187: 187 | J187: 186 | K187: 3.116952786 | L187: 262.75 | M187: 187 | N187: 186 | O187: 4.116952786 | P187: 127.75
A188: 188 | B188: 187 | C188: 1.116237479 | D188: 96.25 | E188: 188 | F188: 187 | G188: 2.116237479 | H188: 86.5 | I188: 188 | J188: 187 | K188: 3.116237479 | L188: 197.25 | M188: 188 | N188: 187 | O188: 4.116237479 | P188: 81.25
A189: 189 | B189: 188 | C189: 1.115522171 | D189: 216.75 | E189: 189 | F189: 188 | G189: 2.115522171 | H189: 187.75 | I189: 189 | J189: 188 | K189: 3.115522171 | L189: 262.75 | M189: 189 | N189: 188 | O189: 4.115522171 | P189: 127.75
A190: 190 | B190: 189 | C190: 1.114806864 | D190: 96.25 | E190: 190 | F190: 189 | G190: 2.114806864 | H190: 86.5 | I190: 190 | J190: 189 | K190: 3.114806864 | L190: 197.25 | M190: 190 | N190: 189 | O190: 4.114806864 | P190: 81.25
A191: 191 | B191: 190 | C191: 1.114091556 | D191: 216.75 | E191: 191 | F191: 190 | G191: 2.114091556 | H191: 187.75 | I191: 191 | J191: 190 | K191: 3.114091556 | L191: 262.75 | M191: 191 | N191: 190 | O191: 4.114091556 | P191: 127.75
A192: 192 | B192: 191 | C192: 1.113376248 | D192: 96.25 | E192: 192 | F192: 191 | G192: 2.113376248 | H192: 86.5 | I192: 192 | J192: 191 | K192: 3.113376248 | L192: 197.25 | M192: 192 | N192: 191 | O192: 4.113376248 | P192: 81.25
A193: 193 | B193: =(A193-1) -> 192 | C193: =1.25+B193*-0.0007153076 -> 1.112660941 | D193: =IF(B193/2-INT(B193/2)<0.1,216.75,96.25) -> 216.75 | E193: 193 | F193: =(E193-1) -> 192 | G193: =2.25+F193*-0.0007153076 -> 2.112660941 | H193: =IF(F193/2-INT(F193/2)<0.1,187.75,86.5) -> 187.75 | I193: 193 | J193: =(I193-1) -> 192 | K193: =3.25+J193*-0.0007153076 -> 3.112660941 | L193: =IF(J193/2-INT(J193/2)<0.1,262.75,197.25) -> 262.75 | M193: 193 | N193: =(M193-1) -> 192 | O193: =4.25+N193*-0.0007153076 -> 4.112660941 | P193: =IF(N193/2-INT(N193/2)<0.1,127.75,81.25) -> 127.75
A194: 194 | B194: 193 | C194: 1.111945633 | D194: 96.25 | E194: 194 | F194: 193 | G194: 2.111945633 | H194: 86.5 | I194: 194 | J194: 193 | K194: 3.111945633 | L194: 197.25 | M194: 194 | N194: 193 | O194: 4.111945633 | P194: 81.25
A195: 195 | B195: 194 | C195: 1.111230326 | D195: 216.75 | E195: 195 | F195: 194 | G195: 2.111230326 | H195: 187.75 | I195: 195 | J195: 194 | K195: 3.111230326 | L195: 262.75 | M195: 195 | N195: 194 | O195: 4.111230326 | P195: 127.75
A196: 196 | B196: 195 | C196: 1.110515018 | D196: 96.25 | E196: 196 | F196: 195 | G196: 2.110515018 | H196: 86.5 | I196: 196 | J196: 195 | K196: 3.110515018 | L196: 197.25 | M196: 196 | N196: 195 | O196: 4.110515018 | P196: 81.25
A197: 197 | B197: 196 | C197: 1.10979971 | D197: 216.75 | E197: 197 | F197: 196 | G197: 2.10979971 | H197: 187.75 | I197: 197 | J197: 196 | K197: 3.10979971 | L197: 262.75 | M197: 197 | N197: 196 | O197: 4.10979971 | P197: 127.75
A198: 198 | B198: 197 | C198: 1.109084403 | D198: 96.25 | E198: 198 | F198: 197 | G198: 2.109084403 | H198: 86.5 | I198: 198 | J198: 197 | K198: 3.109084403 | L198: 197.25 | M198: 198 | N198: 197 | O198: 4.109084403 | P198: 81.25
A199: 199 | B199: 198 | C199: 1.108369095 | D199: 216.75 | E199: 199 | F199: 198 | G199: 2.108369095 | H199: 187.75 | I199: 199 | J199: 198 | K199: 3.108369095 | L199: 262.75 | M199: 199 | N199: 198 | O199: 4.108369095 | P199: 127.75
A200: 200 | B200: 199 | C200: 1.107653788 | D200: 96.25 | E200: 200 | F200: 199 | G200: 2.107653788 | H200: 86.5 | I200: 200 | J200: 199 | K200: 3.107653788 | L200: 197.25 | M200: 200 | N200: 199 | O200: 4.107653788 | P200: 81.25
... 500 more rows
